[Event "23rd Hogeschool Zeeland Open 2019"]
[Site "Vlissingen"]
[Date "2019.08.05"]
[Round "4.7"]
[White "Romanishin, Oleg M"]
[Black "Coenen, Eduard"]
[Result "1-0"]
[ECO "A41"]
[WhiteElo "2443"]
[BlackElo "2101"]
[Annotator "RC"]
[PlyCount "81"]
[EventDate "2019.08.03"]
[EventType "swiss"]
[EventCountry "NED"]
[TimeControl "40/5400+30:1800+30"]

1. d4 {[%emt 0:00:00]} g6 {[%emt 0:00:00]} 2. Nf3 {[%emt 0:00:01]} Bg7 {[%emt 0:00:08]} 3. g3 {[%emt 0:00:32]} d6 {[%emt 0:00:52]} 4. Bg2 {[%emt 0:00:12]} Nd7 {[%emt 0:01:51]} 5. O-O {[%emt 0:06:34]} e5 {[%emt 0:03:41]} 6. a4 {[%emt 0:07:35]} h5 {[%emt 0:09:20]} 7. dxe5 {[%emt 0:03:01]} Nxe5 {[%emt 0:00:41]} 8. Nxe5 {[%emt 0:05:45]} Bxe5 {[%emt 0:01:17]} 9. h4 {[%emt 0:00:33]} Ne7 {[%emt 0:04:08]} 10. Nc3 {[%emt 0:03:54]} Nf5 {[%emt 0:05:52]} 11. a5 {[%emt 0:09:44]} a6 {[%emt 0:01:58]} 12. Nd5 {[%emt 0:05:33]} Be6 {[%emt 0:06:16]} 13. Nf4 {[%emt 0:09:08]} Bd7 {[%emt 0:02:40]} 14. Nd3 {[%emt 0:01:38]} Bd4 {[%emt 0:06:16]} 15. e3 {[%emt 0:06:24]} Ba7 {[%emt 0:01:07]} 16. Qf3 {[%emt 0:06:54]} Bc6 {[%emt 0:06:49]} 17. e4 {[%emt 0:00:15]} Nd4 {[%emt 0:03:06]} 18. Qd1 {[%emt 0:00:06]} Ne6 {[%emt 0:01:26]} 19. Nf4 {[%emt 0:01:45]} Nxf4 {[%emt 0:05:41]} 20. Bxf4 {[%emt 0:00:03]} f6 {[%emt 0:02:59]} 21. Qd2 {[%emt 0:04:52]} Qe7 {[%emt 0:01:02]} 22. c4 {[%emt 0:01:51]} O-O-O {[%emt 0:02:13]} 23. b4 {[%emt 0:02:11]} g5 {[%emt 0:00:48]} 24. hxg5 {[%emt 0:01:24]} Rdg8 {[%emt 0:00:53]} 25. b5 {[%emt 0:02:03]} fxg5 {[%emt 0:03:36]} 26. Be3 {[%emt 0:02:09]} Bxe3 {[%emt 0:02:08]} 27. Qxe3 {[%emt 0:00:06]} axb5 {[%emt 0:00:36]} 28. a6 {[%emt 0:01:24]} bxa6 {[%emt 0:08:20]} 29. Rxa6 {[%emt 0:00:40]} Bb7 {[%emt 0:00:21]} 30. Ra7 {[%emt 0:00:10]} Qe5 {[%emt 0:02:28]} 31. Rb1 {[%emt 0:01:10]} b4 {[%emt 0:04:16]} 32. Rxb4 {[%emt 0:01:00]} Bc6 {[%emt 0:00:03]} 33. Qb3 {[%emt 0:08:43]} Kd7 {[%emt 0:04:53]} 34. c5 {[%emt 0:00:32]} Rf8 {[%emt 0:05:07]} 35. cxd6 {[%emt 0:01:44]} Kxd6 {[%emt 0:00:18]} 36. Rc4 {[%emt 0:02:40]} Rd8 {[%emt 0:01:51]} 37. Ra6 {[%emt 0:01:34]} Kd7 {[%emt 0:02:19]} 38. Raxc6 {[%emt 0:01:04]} Rb8 {[%emt 0:00:46]} 39. Rxc7+ {[%emt 0:02:34]} Qxc7 {[%emt 0:00:01]} 40. Rxc7+ {[%emt 0:00:03]} Kxc7 {[%emt 0:00:02]} 41. Qf7+ {[%emt 0:30:17]} 1-0

[Event "23rd Hogeschool Zeeland Open 2019"]
[Site "Vlissingen"]
[Date "2019.08.05"]
[Round "4.8"]
[White "Nebolsina, Vera"]
[Black "Van der Zalm, Marnix"]
[Result "1-0"]
[ECO "B06"]
[WhiteElo "2269"]
[BlackElo "2062"]
[Annotator "ChessBase"]
[PlyCount "51"]
[EventDate "2019.08.03"]
[EventType "swiss"]
[EventCountry "NED"]
[SourceTitle "playchess.com"]
[Source "ChessBase"]
[SourceQuality "1"]
[TimeControl "40/5400+30:1800+30"]

1. e4 {[%emt 0:00:00]} g6 {[%emt 0:00:00]} 2. d4 {[%emt 0:00:00]} Bg7 {[%emt 0:00:00]} 3. Nc3 {[%emt 0:00:16]} d6 {[%emt 0:00:03]} 4. Be3 {[%emt 0:00:36]} a6 {[%emt 0:00:22]} 5. Nf3 {[%emt 0:00:59]} Nd7 {[%emt 0:01:41]} 6. Bd3 {[%emt 0:03:02]} e5 {[%emt 0:01:45]} 7. Qd2 {[%emt 0:03:59]} Ngf6 {[%emt 0:01:51]} 8. dxe5 {[%emt 0:14:31]} dxe5 {[%emt 0:02:04]} 9. h3 {[%emt 0:08:01]} b5 {[%emt 0:10:30]} 10. a4 {[%emt 0:02:44]} b4 {[%emt 0:07:20]} 11. Ne2 {[%emt 0:00:26]} Qe7 {[%emt 0:04:13]} 12. c3 {[%emt 0:03:13]} Rb8 {[%emt 0:04:56]} 13. Rc1 {[%emt 0:03:13]} Nc5 {[%emt 0:18:04]} 14. Bxc5 {[%emt 0:02:37]} Qxc5 {[%emt 0:00:30]} 15. cxb4 {[%emt 0:00:20]} Qxb4 {[%emt 0:00:33]} 16. Bb5+ {[%emt 0:01:35]} Rxb5 {[%emt 0:01:56]} 17. axb5 {[%emt 0:00:06]} Qxb5 {[%emt 0:02:05]} 18. Nc3 {[%emt 0:11:54]} Qb3 {[%emt 0:04:14]} 19. O-O {[%emt 0:04:24]} O-O {[%emt 0:02:00]} 20. Rfd1 {[%emt 0:05:00]} Bb7 {[%emt 0:04:11]} 21. Nxe5 {[%emt 0:07:58]} Nxe4 {[%emt 0:07:28]} 22. Nxe4 {[%emt 0:00:08]} Bxe4 {[%emt 0:08:02]} 23. Nd7 {[%emt 0:01:48]} Bxb2 {[%emt 0:12:33]} 24. Nxf8 {[%emt 0:00:58]} Bxc1 {[%emt 0:00:09]} 25. Rxc1 {[%emt 0:01:55]} Kxf8 {[%emt 0:00:11]} 26. Qd8+ {[%emt 0:00:05]} 1-0

[Event "23rd Hogeschool Zeeland Open 2019"]
[Site "Vlissingen"]
[Date "2019.08.05"]
[Round "4.9"]
[White "Lacrosse, Marc"]
[Black "Weber, Dirk"]
[Result "1-0"]
[ECO "A57"]
[WhiteElo "2189"]
[BlackElo "2227"]
[Annotator "ChessBase"]
[PlyCount "69"]
[EventDate "2019.08.03"]
[EventType "swiss"]
[EventCountry "NED"]
[SourceTitle "playchess.com"]
[Source "ChessBase"]
[SourceQuality "1"]
[TimeControl "40/5400+30:1800+30"]

1. d4 {[%emt 0:02:20]} Nf6 {[%emt 0:00:14]} 2. c4 {[%emt 0:00:14]} c5 {[%emt 0:00:47]} 3. d5 {[%emt 0:00:33]} b5 {[%emt 0:01:19]} 4. cxb5 {[%emt 0:00:59]} a6 {[%emt 0:00:26]} 5. e3 {[%emt 0:01:18]} e6 {[%emt 0:07:49]} 6. Nc3 {[%emt 0:03:53]} axb5 {[%emt 0:03:54]} 7. Bxb5 {[%emt 0:02:50]} Qa5 {[%emt 0:01:47]} 8. Bd2 {[%emt 0:01:17]} Na6 {[%emt 0:01:46]} 9. a4 {[%emt 0:18:18]} Nb4 {[%emt 0:04:47]} 10. dxe6 {[%emt 0:06:51]} fxe6 {[%emt 0:00:09]} 11. Nf3 {[%emt 0:03:29]} Be7 {[%emt 0:06:45]} 12. O-O {[%emt 0:02:56]} O-O {[%emt 0:04:51]} 13. e4 {[%emt 0:02:51]} d5 {[%emt 0:03:56]} 14. exd5 {[%emt 0:04:05]} exd5 {[%emt 0:00:25]} 15. Na2 {[%emt 0:02:38]} Bg4 {[%emt 0:05:38]} 16. Nxb4 {[%emt 0:01:35]} cxb4 {[%emt 0:00:10]} 17. Qe1 {[%emt 0:07:06]} Bd6 {[%emt 0:17:20]} 18. Ne5 {[%emt 0:02:13]} Bf5 {[%emt 0:05:27]} 19. h3 {[%emt 0:09:40]} Rae8 {[%emt 0:14:04]} 20. Bxe8 {[%emt 0:07:55]} Rxe8 {[%emt 0:00:09]} 21. f4 {[%emt 0:00:47]} Qb6+ {[%emt 0:03:20]} 22. Be3 {[%emt 0:05:24]} d4 {[%emt 0:02:25]} 23. Bf2 {[%emt 0:03:36]} Bd3 {[%emt 0:04:56]} 24. Nd7 {[%emt 0:03:29]} Rxe1 {[%emt 0:04:57]} 25. Nxb6 {[%emt 0:00:04]} Rxf1+ {[%emt 0:00:06]} 26. Rxf1 {[%emt 0:00:05]} Bxf1 {[%emt 0:00:04]} 27. Kxf1 {[%emt 0:00:14]} d3 {[%emt 0:00:22]} 28. Be3 {[%emt 0:02:09]} b3 {[%emt 0:03:08]} 29. a5 {[%emt 0:01:24]} Kf7 {[%emt 0:02:38]} 30. a6 {[%emt 0:00:22]} Bb8 {[%emt 0:00:05]} 31. Nc4 {[%emt 0:00:38]} Nd5 {[%emt 0:00:09]} 32. Bb6 {[%emt 0:02:56]} d2 {[%emt 0:01:06]} 33. Ke2 {[%emt 0:00:16]} Nxf4+ {[%emt 0:00:42]} 34. Kxd2 {[%emt 0:00:07]} Ke6 {[%emt 0:00:17]} 35. Bc7 {[%emt 0:00:46]} 1-0

[Event "23rd Hogeschool Zeeland Open 2019"]
[Site "Vlissingen"]
[Date "2019.08.05"]
[Round "4.10"]
[White "Sparenberg, Erik"]
[Black "Baarslag, Ed"]
[Result "1/2-1/2"]
[ECO "E04"]
[WhiteElo "2146"]
[BlackElo "2220"]
[Annotator "ChessBase"]
[PlyCount "116"]
[EventDate "2019.08.03"]
[EventType "swiss"]
[EventCountry "NED"]
[SourceTitle "playchess.com"]
[Source "ChessBase"]
[SourceQuality "1"]
[TimeControl "40/5400+30:1800+30"]

1. d4 {[%emt 0:00:09]} d5 {[%emt 0:00:00]} 2. c4 {[%emt 0:00:03]} e6 {[%emt 0:00:10]} 3. Nf3 {[%emt 0:00:09]} Nf6 {[%emt 0:00:20]} 4. g3 {[%emt 0:00:24]} dxc4 {[%emt 0:00:53]} 5. Bg2 {[%emt 0:00:25]} a6 {[%emt 0:00:56]} 6. O-O {[%emt 0:09:17]} c5 {[%emt 0:07:10]} 7. dxc5 {[%emt 0:00:53]} Qxd1 {[%emt 0:01:22]} 8. Rxd1 {[%emt 0:00:10]} Bxc5 {[%emt 0:00:39]} 9. Ne5 {[%emt 0:02:58]} Ra7 {[%emt 0:17:34]} 10. Nxc4 {[%emt 0:00:58]} b5 {[%emt 0:03:08]} 11. Bf4 {[%emt 0:20:37]} Nfd7 {[%emt 0:07:15]} 12. Nd6+ {[%emt 0:11:42]} Ke7 {[%emt 0:01:29]} 13. Ne4 {[%emt 0:04:15]} Bb6 {[%emt 0:03:02]} 14. Bd6+ {[%emt 0:02:33]} Ke8 {[%emt 0:00:57]} 15. Nbc3 {[%emt 0:05:44]} Bc7 {[%emt 0:08:44]} 16. Rac1 {[%emt 0:04:29]} f5 {[%emt 0:07:51]} 17. Bxc7 {[%emt 0:15:09]} Rxc7 {[%emt 0:00:40]} 18. Nxb5 {[%emt 0:06:48]} Rxc1 {[%emt 0:06:05]} 19. Rxc1 {[%emt 0:00:15]} Nb6 {[%emt 0:00:47]} 20. Ned6+ {[%emt 0:04:20]} Ke7 {[%emt 0:00:32]} 21. Nxc8+ {[%emt 0:00:57]} Rxc8 {[%emt 0:00:49]} 22. Rxc8 {[%emt 0:00:29]} Nxc8 {[%emt 0:00:07]} 23. Nc3 {[%emt 0:02:10]} Nb6 {[%emt 0:00:40]} 24. e3 {[%emt 0:02:57]} Kd6 {[%emt 0:02:05]} 25. Kf1 {[%emt 0:00:37]} Kc5 {[%emt 0:01:55]} 26. Ke2 {[%emt 0:01:12]} Nc4 {[%emt 0:02:32]} 27. Nd1 {[%emt 0:00:37]} Nd7 {[%emt 0:00:32]} 28. f4 {[%emt 0:00:57]} e5 {[%emt 0:00:33]} 29. e4 {[%emt 0:01:36]} exf4 {[%emt 0:10:52]} 30. gxf4 {[%emt 0:00:10]} fxe4 {[%emt 0:00:34]} 31. Bxe4 {[%emt 0:00:06]} Nf6 {[%emt 0:00:17]} 32. Bd3 {[%emt 0:00:26]} a5 {[%emt 0:00:51]} 33. Bxc4 {[%emt 0:00:27]} Kxc4 {[%emt 0:00:04]} 34. Ne3+ {[%emt 0:00:50]} Kd4 {[%emt 0:01:35]} 35. Nf5+ {[%emt 0:01:15]} Ke4 {[%emt 0:00:08]} 36. Nxg7 {[%emt 0:00:05]} Kxf4 {[%emt 0:00:25]} 37. b3 {[%emt 0:01:40]} Ng4 {[%emt 0:00:41]} 38. h3 {[%emt 0:00:06]} Ne5 {[%emt 0:00:02]} 39. a3 {[%emt 0:00:59]} Kg3 {[%emt 0:00:52]} 40. Ne6 {[%emt 0:00:17]} h5 {[%emt 0:00:59]} 41. Ke3 {[%emt 0:30:44]} Kxh3 {[%emt 0:43:08]} 42. Nf4+ {[%emt 0:00:00]} Kg4 {[%emt 0:00:00]} 43. Nxh5 {[%emt 0:00:00]} Kxh5 {[%emt 0:00:00]} 44. Ke4 {[%emt 0:00:00]} Ng4 {[%emt 0:00:00]} 45. Kd4 {[%emt 0:00:00]} Kg5 {[%emt 0:00:00]} 46. Kc5 {[%emt 0:00:00]} Ne3 {[%emt 0:00:00]} 47. Kb5 {[%emt 0:00:00]} Nc2 {[%emt 0:00:00]} 48. a4 {[%emt 0:00:00]} Nd4+ {[%emt 0:00:00]} 49. Kxa5 {[%emt 0:00:00]} Nxb3+ {[%emt 0:00:00]} 50. Kb4 {[%emt 0:00:00]} Nd4 {[%emt 0:00:00]} 51. Kc4 {[%emt 0:00:00]} Nf5 {[%emt 0:00:00]} 52. a5 {[%emt 0:00:00]} Ne7 {[%emt 0:00:00]} 53. a6 {[%emt 0:00:00]} Nc8 {[%emt 0:00:00]} 54. Kc5 {[%emt 0:00:00]} Kf6 {[%emt 0:00:00]} 55. Kc6 {[%emt 0:00:00]} Ke7 {[%emt 0:00:00]} 56. Kc7 {[%emt 0:00:00]} Na7 {[%emt 0:00:00]} 57. Kb7 {[%emt 0:00:00]} Kd7 {[%emt 0:00:00]} 58. Kxa7 {[%emt 0:00:00]} Kc7 {[%emt 0:00:00]} 1/2-1/2

[Event "23rd Hogeschool Zeeland Open 2019"]
[Site "Vlissingen"]
[Date "2019.08.05"]
[Round "4.11"]
[White "Elgersma, Simon"]
[Black "Van Baar, Esper"]
[Result "0-1"]
[ECO "B91"]
[WhiteElo "2130"]
[BlackElo "2108"]
[Annotator "ChessBase"]
[PlyCount "82"]
[EventDate "2019.08.03"]
[EventType "swiss"]
[EventCountry "NED"]
[SourceTitle "playchess.com"]
[Source "ChessBase"]
[SourceQuality "1"]
[TimeControl "40/5400+30:1800+30"]

1. e4 {[%emt 0:00:00]} c5 {[%emt 0:00:00]} 2. Nf3 {[%emt 0:00:00]} d6 {[%emt 0:00:26]} 3. d4 {[%emt 0:00:18]} cxd4 {[%emt 0:00:03]} 4. Nxd4 {[%emt 0:00:07]} Nf6 {[%emt 0:00:03]} 5. Nc3 {[%emt 0:00:07]} a6 {[%emt 0:00:04]} 6. g3 {[%emt 0:00:05]} e5 {[%emt 0:00:08]} 7. Nde2 {[%emt 0:00:26]} Be7 {[%emt 0:01:36]} 8. Bg2 {[%emt 0:00:20]} O-O {[%emt 0:00:57]} 9. O-O {[%emt 0:00:25]} b5 {[%emt 0:01:51]} 10. h3 {[%emt 0:03:58]} Bb7 {[%emt 0:04:00]} 11. g4 {[%emt 0:02:08]} b4 {[%emt 0:02:59]} 12. Nd5 {[%emt 0:00:25]} Nxd5 {[%emt 0:00:20]} 13. exd5 {[%emt 0:00:13]} Bc8 {[%emt 0:04:52]} 14. Bd2 {[%emt 0:14:49]} g6 {[%emt 0:10:13]} 15. Bxb4 {[%emt 0:11:30]} f5 {[%emt 0:00:10]} 16. Ng3 {[%emt 0:06:48]} Bh4 {[%emt 0:08:19]} 17. Kh1 {[%emt 0:08:26]} fxg4 {[%emt 0:04:49]} 18. Ne4 {[%emt 0:06:32]} gxh3 {[%emt 0:03:07]} 19. Bf3 {[%emt 0:00:13]} Be7 {[%emt 0:04:24]} 20. c4 {[%emt 0:01:55]} a5 {[%emt 0:03:59]} 21. Ba3 {[%emt 0:08:07]} Na6 {[%emt 0:18:44]} 22. c5 {[%emt 0:03:50]} Nb4 {[%emt 0:01:03]} 23. Bxb4 {[%emt 0:02:33]} axb4 {[%emt 0:00:04]} 24. cxd6 {[%emt 0:11:47]} Bxd6 {[%emt 0:00:22]} 25. Rc1 {[%emt 0:00:10]} Bb7 {[%emt 0:05:59]} 26. Bg4 {[%emt 0:01:11]} Rf4 {[%emt 0:01:36]} 27. Be6+ {[%emt 0:01:23]} Kh8 {[%emt 0:01:38]} 28. f3 {[%emt 0:00:49]} Bf8 {[%emt 0:08:33]} 29. Rf2 {[%emt 0:03:58]} Qb6 {[%emt 0:04:59]} 30. Qe1 {[%emt 0:02:52]} Rd8 {[%emt 0:00:35]} 31. Nc5 {[%emt 0:01:13]} Bg7 {[%emt 0:01:41]} 32. Nxb7 {[%emt 0:02:15]} Qxb7 {[%emt 0:00:20]} 33. Rfc2 {[%emt 0:01:19]} Rxf3 {[%emt 0:02:53]} 34. Rc7 {[%emt 0:04:58]} Qb6 {[%emt 0:01:43]} 35. Bg4 {[%emt 0:01:30]} Qf2 {[%emt 0:03:34]} 36. Qxf2 {[%emt 0:00:05]} Rxf2 {[%emt 0:00:03]} 37. Re7 {[%emt 0:00:38]} Rxd5 {[%emt 0:01:27]} 38. Rcc7 {[%emt 0:00:14]} Rdd2 {[%emt 0:00:12]} 39. Re8+ {[%emt 0:01:18]} Bf8 {[%emt 0:00:27]} 40. Kg1 {[%emt 0:00:34]} h2+ {[%emt 0:00:29]} 41. Kh1 {[%emt 0:30:04]} Rf1# {[%emt 0:31:48]} 0-1

[Event "23rd Hogeschool Zeeland Open 2019"]
[Site "Vlissingen"]
[Date "2019.08.05"]
[Round "4.12"]
[White "De Wilde, Rik"]
[Black "Van Liempt, Michael"]
[Result "1/2-1/2"]
[ECO "B70"]
[WhiteElo "2169"]
[BlackElo "2091"]
[Annotator "NA"]
[PlyCount "38"]
[EventDate "2019.08.03"]
[EventType "swiss"]
[EventCountry "NED"]
[SourceTitle "playchess.com"]
[Source "ChessBase"]
[SourceQuality "1"]
[TimeControl "40/5400+30:1800+30"]

1. e4 {[%emt 0:00:00]} c5 {[%emt 0:00:00]} 2. Nf3 {[%emt 0:00:00]} Nc6 {[%emt 0:00:21]} 3. d4 {[%emt 0:00:10]} cxd4 {[%emt 0:00:12]} 4. Nxd4 {[%emt 0:00:07]} g6 {[%emt 0:00:19]} 5. Nc3 {[%emt 0:02:48]} Bg7 {[%emt 0:00:30]} 6. Nb3 {[%emt 0:02:28]} Nf6 {[%emt 0:01:12]} 7. Be2 {[%emt 0:04:18]} d6 {[%emt 0:03:26]} 8. O-O {[%emt 0:01:42]} O-O {[%emt 0:03:04]} 9. Bg5 {[%emt 0:01:21]} a5 {[%emt 0:05:57]} 10. a4 {[%emt 0:01:09]} Be6 {[%emt 0:01:59]} 11. f4 {[%emt 0:03:55]} Nd7 {[%emt 0:15:14]} 12. f5 {[%emt 0:10:44]} Bxb3 {[%emt 0:04:20]} 13. cxb3 {[%emt 0:00:08]} Nb4 {[%emt 0:09:05]} 14. Nd5 {[%emt 0:15:19]} Nxd5 {[%emt 0:03:13]} 15. Qxd5 {[%emt 0:00:20]} Nf6 {[%emt 0:05:22]} 16. Qd3 {[%emt 0:07:31]} Rc8 {[%emt 0:05:59]} 17. Rad1 {[%emt 0:04:53]} Qb6+ {[%emt 0:01:34]} 18. Be3 {[%emt 0:01:03]} Qc6 {[%emt 0:00:40]} 19. Bf3 {[%emt 0:01:40]} Qc2 {[%emt 0:00:50]} 1/2-1/2

[Event "23rd Hogeschool Zeeland Open 2019"]
[Site "Vlissingen"]
[Date "2019.08.05"]
[Round "4.13"]
[White "Timmermans, Ivo"]
[Black "Hoffman, Ron"]
[Result "1-0"]
[ECO "B04"]
[WhiteElo "2168"]
[BlackElo "2011"]
[Annotator "ChessBase"]
[PlyCount "75"]
[EventDate "2019.08.03"]
[EventType "swiss"]
[EventCountry "NED"]
[SourceTitle "playchess.com"]
[Source "ChessBase"]
[SourceQuality "1"]
[TimeControl "40/5400+30:1800+30"]

1. e4 {[%emt 0:00:00]} Nf6 {[%emt 0:00:00]} 2. e5 {[%emt 0:00:10]} Nd5 {[%emt 0:00:00]} 3. d4 {[%emt 0:00:57]} d6 {[%emt 0:00:02]} 4. Nf3 {[%emt 0:01:18]} g6 {[%emt 0:00:07]} 5. Bc4 {[%emt 0:00:33]} Nb6 {[%emt 0:00:06]} 6. Bb3 {[%emt 0:00:22]} Bg7 {[%emt 0:00:07]} 7. Ng5 {[%emt 0:05:17]} e6 {[%emt 0:00:10]} 8. f4 {[%emt 0:02:40]} dxe5 {[%emt 0:00:53]} 9. fxe5 {[%emt 0:00:35]} O-O {[%emt 0:01:46]} 10. O-O {[%emt 0:02:05]} c5 {[%emt 0:00:42]} 11. c3 {[%emt 0:00:30]} cxd4 {[%emt 0:00:07]} 12. cxd4 {[%emt 0:00:08]} Nc6 {[%emt 0:00:29]} 13. Nf3 {[%emt 0:01:53]} f6 {[%emt 0:00:31]} 14. exf6 {[%emt 0:02:50]} Qxf6 {[%emt 0:00:04]} 15. Be3 {[%emt 0:02:15]} Nd5 {[%emt 0:00:15]} 16. Bf2 {[%emt 0:00:26]} Nf4 {[%emt 0:00:29]} 17. Nc3 {[%emt 0:13:57]} Nh3+ {[%emt 0:00:21]} 18. gxh3 {[%emt 0:00:08]} Qxf3 {[%emt 0:00:08]} 19. Qxf3 {[%emt 0:00:25]} Rxf3 {[%emt 0:00:02]} 20. Kg2 {[%emt 0:02:03]} Rf5 {[%emt 0:22:37]} 21. Rfd1 {[%emt 0:06:59]} Bd7 {[%emt 0:10:52]} 22. d5 {[%emt 0:13:20]} Na5 {[%emt 0:12:49]} 23. Bc2 {[%emt 0:08:30]} Rg5+ {[%emt 0:02:41]} 24. Bg3 {[%emt 0:02:37]} exd5 {[%emt 0:07:02]} 25. h4 {[%emt 0:03:33]} Rg4 {[%emt 0:03:47]} 26. Nxd5 {[%emt 0:03:09]} Rd4 {[%emt 0:21:39]} 27. Rxd4 {[%emt 0:00:44]} Bxd4 {[%emt 0:00:02]} 28. Rd1 {[%emt 0:00:25]} Nc6 {[%emt 0:02:56]} 29. Bb3 {[%emt 0:02:51]} Be6 {[%emt 0:03:23]} 30. Ne7+ {[%emt 0:03:00]} Kf7 {[%emt 0:00:15]} 31. Nxc6 {[%emt 0:01:17]} Bxb3 {[%emt 0:02:56]} 32. Rxd4 {[%emt 0:00:17]} Bxa2 {[%emt 0:00:57]} 33. Nd8+ {[%emt 0:04:44]} Ke7 {[%emt 0:00:46]} 34. Nxb7 {[%emt 0:00:54]} Rc8 {[%emt 0:00:27]} 35. b4 {[%emt 0:01:12]} Rc3 {[%emt 0:04:23]} 36. Nc5 {[%emt 0:01:23]} a5 {[%emt 0:00:39]} 37. bxa5 {[%emt 0:00:43]} Kf6 {[%emt 0:00:28]} 38. Ne4+ {[%emt 0:00:21]} 1-0

[Event "23rd Hogeschool Zeeland Open 2019"]
[Site "Vlissingen"]
[Date "2019.08.05"]
[Round "4.15"]
[White "Westerweele, Henrik"]
[Black "Klepke, Ricardo"]
[Result "1-0"]
[ECO "B22"]
[WhiteElo "1961"]
[BlackElo "2267"]
[Annotator "ChessBase"]
[PlyCount "67"]
[EventDate "2019.08.03"]
[EventType "swiss"]
[EventCountry "NED"]
[SourceTitle "playchess.com"]
[Source "ChessBase"]
[SourceQuality "1"]
[TimeControl "40/5400+30:1800+30"]

1. e4 {[%emt 0:00:00]} c5 {[%emt 0:00:00]} 2. c3 {[%emt 0:00:19]} Nf6 {[%emt 0:00:00]} 3. e5 {[%emt 0:00:19]} Nd5 {[%emt 0:00:00]} 4. d4 {[%emt 0:00:29]} cxd4 {[%emt 0:00:06]} 5. cxd4 {[%emt 0:00:14]} e6 {[%emt 0:00:28]} 6. Nf3 {[%emt 0:02:32]} Nc6 {[%emt 0:00:14]} 7. Nc3 {[%emt 0:01:56]} Nxc3 {[%emt 0:01:03]} 8. bxc3 {[%emt 0:00:12]} d6 {[%emt 0:00:06]} 9. exd6 {[%emt 0:01:13]} Bxd6 {[%emt 0:00:25]} 10. Bd3 {[%emt 0:01:11]} Qc7 {[%emt 0:00:49]} 11. O-O {[%emt 0:03:24]} Bd7 {[%emt 0:03:45]} 12. Qe2 {[%emt 0:09:38]} O-O-O {[%emt 0:04:31]} 13. c4 {[%emt 0:04:53]} Kb8 {[%emt 0:06:22]} 14. Rb1 {[%emt 0:07:11]} Ka8 {[%emt 0:04:00]} 15. Qb2 {[%emt 0:03:02]} Bc8 {[%emt 0:02:06]} 16. Be3 {[%emt 0:08:22]} Bf4 {[%emt 0:03:36]} 17. Be4 {[%emt 0:04:00]} Na5 {[%emt 0:11:11]} 18. Qb4 {[%emt 0:13:48]} Bxe3 {[%emt 0:03:26]} 19. fxe3 {[%emt 0:00:15]} f6 {[%emt 0:02:45]} 20. c5 {[%emt 0:08:32]} Bd7 {[%emt 0:02:32]} 21. Rb2 {[%emt 0:04:11]} Bc6 {[%emt 0:02:14]} 22. Bxc6 {[%emt 0:02:04]} Nxc6 {[%emt 0:00:08]} 23. Qa4 {[%emt 0:03:07]} Rd7 {[%emt 0:03:19]} 24. Nd2 {[%emt 0:03:59]} Qa5 {[%emt 0:03:07]} 25. Qc4 {[%emt 0:05:09]} Qa3 {[%emt 0:01:21]} 26. Rb3 {[%emt 0:06:20]} Qxa2 {[%emt 0:00:33]} 27. Qc3 {[%emt 0:00:07]} Qa5 {[%emt 0:00:19]} 28. Qb2 {[%emt 0:01:25]} Qa6 {[%emt 0:20:49]} 29. Rb5 {[%emt 0:00:49]} Nd8 {[%emt 0:03:10]} 30. Ra1 {[%emt 0:01:46]} Qc6 {[%emt 0:00:14]} 31. Nc4 {[%emt 0:02:08]} Kb8 {[%emt 0:01:11]} 32. Rba5 {[%emt 0:00:56]} Nf7 {[%emt 0:08:23]} 33. Rxa7 {[%emt 0:00:44]} Rhd8 {[%emt 0:01:02]} 34. Qb6 {[%emt 0:01:59]} 1-0

[Event "23rd Hogeschool Zeeland Open 2019"]
[Site "Vlissingen"]
[Date "2019.08.05"]
[Round "4.16"]
[White "Elgersma, Onno"]
[Black "Le Clercq, Maxim"]
[Result "1-0"]
[ECO "C87"]
[WhiteElo "2232"]
[BlackElo "1930"]
[Annotator "ChessBase"]
[PlyCount "55"]
[EventDate "2019.08.03"]
[EventType "swiss"]
[EventCountry "NED"]
[SourceTitle "playchess.com"]
[Source "ChessBase"]
[SourceQuality "1"]
[TimeControl "40/5400+30:1800+30"]

1. e4 {[%emt 0:00:00]} e5 {[%emt 0:00:00]} 2. Nf3 {[%emt 0:00:00]} Nc6 {[%emt 0:00:00]} 3. Bb5 {[%emt 0:00:00]} a6 {[%emt 0:00:03]} 4. Ba4 {[%emt 0:00:00]} Nf6 {[%emt 0:00:08]} 5. d3 {[%emt 0:05:58]} d6 {[%emt 0:01:36]} 6. c3 {[%emt 0:02:23]} Be7 {[%emt 0:01:31]} 7. O-O {[%emt 0:00:29]} O-O {[%emt 0:01:09]} 8. Re1 {[%emt 0:01:16]} b5 {[%emt 0:04:11]} 9. Bc2 {[%emt 0:00:18]} Bg4 {[%emt 0:00:19]} 10. Nbd2 {[%emt 0:01:28]} d5 {[%emt 0:09:47]} 11. h3 {[%emt 0:04:14]} Bh5 {[%emt 0:04:26]} 12. Qe2 {[%emt 0:03:59]} Qd7 {[%emt 0:05:37]} 13. Nf1 {[%emt 0:01:37]} d4 {[%emt 0:19:29]} 14. Ng3 {[%emt 0:05:05]} Bxf3 {[%emt 0:05:42]} 15. Qxf3 {[%emt 0:06:00]} dxc3 {[%emt 0:00:11]} 16. bxc3 {[%emt 0:00:22]} b4 {[%emt 0:00:17]} 17. Ba4 {[%emt 0:11:32]} g6 {[%emt 0:03:03]} 18. Bg5 {[%emt 0:07:33]} Qd6 {[%emt 0:03:55]} 19. d4 {[%emt 0:05:36]} exd4 {[%emt 0:09:20]} 20. Bxc6 {[%emt 0:08:49]} Qxc6 {[%emt 0:00:01]} 21. cxd4 {[%emt 0:00:07]} Rfe8 {[%emt 0:06:40]} 22. Rac1 {[%emt 0:02:10]} Qb6 {[%emt 0:00:25]} 23. e5 {[%emt 0:01:18]} Nd5 {[%emt 0:01:34]} 24. Bxe7 {[%emt 0:16:30]} Nxe7 {[%emt 0:00:02]} 25. d5 {[%emt 0:00:34]} Rad8 {[%emt 0:04:28]} 26. Red1 {[%emt 0:01:42]} Qb7 {[%emt 0:10:38]} 27. Ne4 {[%emt 0:02:34]} Rf8 {[%emt 0:00:10]} 28. d6 {[%emt 0:00:45]} 1-0

[Event "23rd Hogeschool Zeeland Open 2019"]
[Site "Vlissingen"]
[Date "2019.08.06"]
[Round "5.1"]
[White "Werle, Jan"]
[Black "Kamsky, Gata"]
[Result "1/2-1/2"]
[ECO "D11"]
[WhiteElo "2555"]
[BlackElo "2673"]
[Annotator "ChessBase"]
[PlyCount "36"]
[EventDate "2019.08.03"]
[EventType "swiss"]
[EventCountry "NED"]
[SourceTitle "playchess.com"]
[Source "ChessBase"]
[SourceQuality "1"]
[TimeControl "40/5400+30:1800+30"]

1. d4 {[%emt 0:00:00]} d5 {[%emt 0:00:12]} 2. c4 {[%emt 0:00:00]} c6 {[%emt 0:00:05]} 3. Nf3 {[%emt 0:00:51]} Nf6 {[%emt 0:00:10]} 4. e3 {[%emt 0:00:38]} Bg4 {[%emt 0:00:17]} 5. h3 {[%emt 0:02:33]} Bxf3 {[%emt 0:00:08]} 6. Qxf3 {[%emt 0:00:12]} e6 {[%emt 0:00:07]} 7. Nc3 {[%emt 0:01:25]} Nbd7 {[%emt 0:00:22]} 8. Bd3 {[%emt 0:03:58]} g6 {[%emt 0:00:50]} 9. O-O {[%emt 0:00:44]} Bg7 {[%emt 0:00:04]} 10. cxd5 {[%emt 0:06:28]} Nxd5 {[%emt 0:14:19]} 11. Rd1 {[%emt 0:03:05]} O-O {[%emt 0:00:12]} 12. e4 {[%emt 0:03:54]} N5b6 {[%emt 0:04:58]} 13. Bf1 {[%emt 0:02:10]} Qe7 {[%emt 0:01:27]} 14. a4 {[%emt 0:04:10]} a5 {[%emt 0:00:26]} 15. b3 {[%emt 0:02:00]} Rfd8 {[%emt 0:02:52]} 16. Ba3 {[%emt 0:03:35]} Qf6 {[%emt 0:00:18]} 17. Qg3 {[%emt 0:02:10]} e5 {[%emt 0:00:15]} 18. d5 {[%emt 0:03:41]} Bf8 {[%emt 0:00:19]} 1/2-1/2